[Event "Early-Titled-Tuesday-Blitz-September-05-2023"]
[Site "Chess.com"]
[Date "2023.09.05"]
[Round "5"]
[White "Shield12"]
[Black "JeRoma71"]
[Result "1/2-1/2"]
[WhiteElo "2955"]
[BlackElo "2831"]
[TimeControl "180+1"]
[EndTime "8:55:56 PDT"]
[Termination "Game drawn - insufficient material"]

1. e4 {[%clk 0:02:51.4]} 1... e6 {[%clk 0:02:57.7]} 2. d4 {[%clk 0:02:49.5]}
2... d5 {[%clk 0:02:57.5]} 3. Nc3 {[%clk 0:02:50]} 3... Bb4 {[%clk 0:02:56.6]}
4. exd5 {[%clk 0:02:44.9]} 4... exd5 {[%clk 0:02:57.2]} 5. Bd3 {[%clk
0:02:40.5]} 5... Nc6 {[%clk 0:02:56.7]} 6. Nf3 {[%clk 0:02:39]} 6... Nge7 {[%clk
0:02:56.6]} 7. O-O {[%clk 0:02:33.3]} 7... Bg4 {[%clk 0:02:55.9]} 8. h3 {[%clk
0:02:33.2]} 8... Bh5 {[%clk 0:02:55.5]} 9. a3 {[%clk 0:02:33.2]} 9... Bxc3
{[%clk 0:02:55]} 10. bxc3 {[%clk 0:02:34.1]} 10... Bg6 {[%clk 0:02:52.5]} 11.
Re1 {[%clk 0:02:31.2]} 11... O-O {[%clk 0:02:52]} 12. a4 {[%clk 0:02:29.6]}
12... Re8 {[%clk 0:02:50.7]} 13. Ba3 {[%clk 0:02:27.3]} 13... Nf5 {[%clk
0:02:45.9]} 14. Qd2 {[%clk 0:02:19.4]} 14... Qd7 {[%clk 0:02:42.4]} 15. Bb5
{[%clk 0:02:17.5]} 15... f6 {[%clk 0:02:36.8]} 16. c4 {[%clk 0:02:14.1]} 16...
a6 {[%clk 0:02:31.4]} 17. cxd5 {[%clk 0:02:13.1]} 17... Rxe1+ {[%clk 0:02:21.7]}
18. Rxe1 {[%clk 0:02:11.6]} 18... axb5 {[%clk 0:02:22.3]} 19. dxc6 {[%clk
0:02:11.7]} 19... bxc6 {[%clk 0:02:18.9]} 20. a5 {[%clk 0:02:11.5]} 20... Bf7
{[%clk 0:02:04.9]} 21. Bb4 {[%clk 0:02:08.8]} 21... Bd5 {[%clk 0:02:03.8]} 22.
Nh2 {[%clk 0:02:07.1]} 22... Nd6 {[%clk 0:02:03.2]} 23. Qf4 {[%clk 0:01:56.7]}
23... h5 {[%clk 0:01:36.7]} 24. Nf1 {[%clk 0:01:53.5]} 24... Nf5 {[%clk
0:01:21.6]} 25. Ng3 {[%clk 0:01:50.6]} 25... Nxg3 {[%clk 0:01:16.9]} 26. Qxg3
{[%clk 0:01:51.5]} 26... Re8 {[%clk 0:01:17.6]} 27. Rxe8+ {[%clk 0:01:38.6]}
27... Qxe8 {[%clk 0:01:18.5]} 28. a6 {[%clk 0:01:13.7]} 28... Qa8 {[%clk
0:01:17.7]} 29. Be7 {[%clk 0:01:09.9]} 29... Kf7 {[%clk 0:01:13.5]} 30. Qa3
{[%clk 0:00:59.6]} 30... c5 {[%clk 0:01:13.3]} 31. Qxc5 {[%clk 0:00:53.3]} 31...
Bxg2 {[%clk 0:01:11.7]} 32. Qxc7 {[%clk 0:00:51.5]} 32... Be4 {[%clk 0:00:55.1]}
33. a7 {[%clk 0:00:48.4]} 33... Qd5 {[%clk 0:00:52.4]} 34. Bd6+ {[%clk
0:00:41.9]} 34... Kg8 {[%clk 0:00:45]} 35. Bg3 {[%clk 0:00:36.2]} 35... Kh7
{[%clk 0:00:40.7]} 36. Qc5 {[%clk 0:00:29.8]} 36... Qxc5 {[%clk 0:00:34.2]} 37.
dxc5 {[%clk 0:00:30.5]} 37... g5 {[%clk 0:00:34.9]} 38. h4 {[%clk 0:00:27.2]}
38... Kg6 {[%clk 0:00:34.2]} 39. Kf1 {[%clk 0:00:25.2]} 39... Kf5 {[%clk
0:00:31.9]} 40. Ke2 {[%clk 0:00:24.5]} 40... Kg4 {[%clk 0:00:31.7]} 41. Ke3
{[%clk 0:00:16.4]} 41... Ba8 {[%clk 0:00:23.5]} 42. hxg5 {[%clk 0:00:16.7]}
42... fxg5 {[%clk 0:00:23.2]} 43. Bd6 {[%clk 0:00:17.3]} 43... h4 {[%clk
0:00:15.6]} 44. f4 {[%clk 0:00:17.3]} 44... gxf4+ {[%clk 0:00:11.8]} 45. Bxf4
{[%clk 0:00:18.2]} 45... Kf5 {[%clk 0:00:12.7]} 46. Bh2 {[%clk 0:00:18.1]} 46...
Ke6 {[%clk 0:00:12.3]} 47. Kd4 {[%clk 0:00:18.8]} 47... Kd7 {[%clk 0:00:12.6]}
48. Kc3 {[%clk 0:00:19.3]} 48... Bc6 {[%clk 0:00:10.8]} 49. Kb4 {[%clk
0:00:20.2]} 49... Kc8 {[%clk 0:00:11.3]} 50. Ka5 {[%clk 0:00:18.5]} 50... Kb7
{[%clk 0:00:12.1]} 51. a8=Q+ {[%clk 0:00:18.1]} 51... Kxa8 {[%clk 0:00:12.3]}
52. Kb6 {[%clk 0:00:19]} 52... Be4 {[%clk 0:00:09.9]} 53. c3 {[%clk 0:00:19.3]}
53... Bd3 {[%clk 0:00:09.7]} 54. c6 {[%clk 0:00:18.9]} 54... Bf5 {[%clk
0:00:09.6]} 55. Bf4 {[%clk 0:00:18.2]} 55... h3 {[%clk 0:00:09.6]} 56. Bg3
{[%clk 0:00:17.5]} 56... Bg4 {[%clk 0:00:09.3]} 57. Be5 {[%clk 0:00:13.1]} 57...
Be2 {[%clk 0:00:09.4]} 58. Kc7 {[%clk 0:00:10.7]} 58... Ka7 {[%clk 0:00:09.1]}
59. Kd8 {[%clk 0:00:10.6]} 59... Kb6 {[%clk 0:00:08]} 60. c7 {[%clk 0:00:10.1]}
60... Bg4 {[%clk 0:00:08.9]} 61. c8=Q {[%clk 0:00:08.6]} 61... Bxc8 {[%clk
0:00:09.6]} 62. Kxc8 {[%clk 0:00:09.5]} 62... b4 {[%clk 0:00:09.3]} 63. cxb4
{[%clk 0:00:08.4]} 63... Kb5 {[%clk 0:00:09.5]} 64. Bd6 {[%clk 0:00:08.5]} 64...
h2 {[%clk 0:00:10.2]} 65. Bxh2 {[%clk 0:00:09.1]} 65... Kxb4 {[%clk 0:00:10.6]}
1/2-1/2

[Event "Early-Titled-Tuesday-Blitz-September-05-2023"]
[Site "Chess.com"]
[Date "2023.09.05"]
[Round "5"]
[White "KorolDimitriy75"]
[Black "GeorgiosSouleidis"]
[Result "0-1"]
[WhiteElo "2325"]
[BlackElo "2536"]
[TimeControl "180+1"]
[EndTime "8:56:06 PDT"]
[Termination "GeorgiosSouleidis won by resignation"]

1. d4 {[%clk 0:03:00.9]} 1... d5 {[%clk 0:02:57.4]} 2. c4 {[%clk 0:03:00.8]}
2... dxc4 {[%clk 0:02:57.3]} 3. Nf3 {[%clk 0:03:00.4]} 3... Nf6 {[%clk
0:02:56.7]} 4. Nc3 {[%clk 0:03:00.5]} 4... a6 {[%clk 0:02:49.5]} 5. e4 {[%clk
0:03:00.3]} 5... b5 {[%clk 0:02:49.7]} 6. e5 {[%clk 0:03:00.6]} 6... Nd5 {[%clk
0:02:49.6]} 7. a4 {[%clk 0:03:00.6]} 7... Bb7 {[%clk 0:02:43.3]} 8. e6 {[%clk
0:03:00.1]} 8... fxe6 {[%clk 0:02:43]} 9. Ne4 {[%clk 0:02:59.2]} 9... Ne3 {[%clk
0:02:10]} 10. Bxe3 {[%clk 0:02:48.1]} 10... Bxe4 {[%clk 0:02:09.9]} 11. Ng5
{[%clk 0:02:30.5]} 11... Bd5 {[%clk 0:01:40.1]} 12. axb5 {[%clk 0:02:13.1]}
12... Qd6 {[%clk 0:01:27.7]} 13. Be2 {[%clk 0:01:20.3]} 13... g6 {[%clk
0:01:26.5]} 14. O-O {[%clk 0:00:56.1]} 14... Bg7 {[%clk 0:01:26.3]} 15. bxa6
{[%clk 0:00:40.7]} 15... Rxa6 {[%clk 0:01:27.2]} 16. Rxa6 {[%clk 0:00:38.5]}
16... Nxa6 {[%clk 0:01:28.1]} 17. Bxc4 {[%clk 0:00:27.6]} 17... O-O {[%clk
0:01:17.5]} 18. Bxd5 {[%clk 0:00:22.4]} 18... exd5 {[%clk 0:01:18.4]} 19. Qg4
{[%clk 0:00:17.7]} 19... Nb4 {[%clk 0:00:44.5]} 20. Qe6+ {[%clk 0:00:14]} 20...
Qxe6 {[%clk 0:00:38]} 21. Nxe6 {[%clk 0:00:14.9]} 21... Rc8 {[%clk 0:00:33.3]}
22. Rc1 {[%clk 0:00:12.5]} 22... c6 {[%clk 0:00:32.3]} 23. Rc3 {[%clk
0:00:11.1]} 23... Bf6 {[%clk 0:00:29.9]} 24. h3 {[%clk 0:00:09.3]} 24... Kf7
{[%clk 0:00:28.5]} 25. Nc5 {[%clk 0:00:09.4]} 25... Ra8 {[%clk 0:00:25.1]} 26.
Rb3 {[%clk 0:00:09.1]} 26... Nc2 {[%clk 0:00:19.4]} 27. Rd3 {[%clk 0:00:07.3]}
27... Ra1+ {[%clk 0:00:17.5]} 28. Kh2 {[%clk 0:00:06.9]} 28... h5 {[%clk
0:00:17.7]} 29. g3 {[%clk 0:00:06.1]} 29... Rb1 {[%clk 0:00:17.9]} 30. b3 {[%clk
0:00:05.5]} 30... Na1 {[%clk 0:00:17.8]} 31. Kg2 {[%clk 0:00:05.4]} 31... Nc2
{[%clk 0:00:18.2]} 32. h4 {[%clk 0:00:05.4]} 32... Ra1 {[%clk 0:00:17.2]} 33.
Rd2 {[%clk 0:00:05.4]} 33... Nb4 {[%clk 0:00:14.8]} 34. Kf3 {[%clk 0:00:05]}
34... Ra8 {[%clk 0:00:14.1]} 35. Rd1 {[%clk 0:00:04.6]} 35... Rb8 {[%clk
0:00:13.8]} 36. Rc1 {[%clk 0:00:04.4]} 36... Ke8 {[%clk 0:00:11.6]} 37. Bf4
{[%clk 0:00:04.2]} 37... Rb6 {[%clk 0:00:11]} 38. Be3 {[%clk 0:00:04.4]} 38...
Rb8 {[%clk 0:00:10]} 39. Ne6 {[%clk 0:00:04.6]} 39... Kf7 {[%clk 0:00:08.8]} 40.
Nc5 {[%clk 0:00:04.5]} 40... Ra8 {[%clk 0:00:09.1]} 41. Bf4 {[%clk 0:00:04.1]}
41... Ra2 {[%clk 0:00:08.5]} 42. Be3 {[%clk 0:00:04.4]} 42... Nc2 {[%clk
0:00:08.7]} 43. Nd3 {[%clk 0:00:03.9]} 43... Nxd4+ {[%clk 0:00:07.5]} 44. Bxd4
{[%clk 0:00:04.2]} 44... Bxd4 {[%clk 0:00:08.4]} 45. Rxc6 {[%clk 0:00:04.6]}
45... e5 {[%clk 0:00:08.6]} 46. Rc7+ {[%clk 0:00:03.8]} 46... Ke6 {[%clk
0:00:09.2]} 47. Kg2 {[%clk 0:00:04.1]} 47... Kf5 {[%clk 0:00:07]} 48. Rf7+
{[%clk 0:00:03.3]} 48... Ke6 {[%clk 0:00:07.5]} 49. Rc7 {[%clk 0:00:03.4]} 49...
Kf6 {[%clk 0:00:07.6]} 50. Rc6+ {[%clk 0:00:03.5]} 50... Kg7 {[%clk 0:00:07.6]}
51. Rc7+ {[%clk 0:00:03.8]} 51... Kf6 {[%clk 0:00:07.8]} 52. Rd7 {[%clk
0:00:04]} 52... Ke6 {[%clk 0:00:07.9]} 53. Rd8 {[%clk 0:00:03.7]} 53... Rd2
{[%clk 0:00:07.9]} 54. Nb4 {[%clk 0:00:02.7]} 54... Rxf2+ {[%clk 0:00:06.9]} 55.
Kh3 {[%clk 0:00:02]} 55... Rb2 {[%clk 0:00:05]} 56. Nc6 {[%clk 0:00:01.9]} 56...
Rxb3 {[%clk 0:00:04]} 57. Nxd4+ {[%clk 0:00:01.7]} 57... exd4 {[%clk 0:00:04.9]}
58. Re8+ {[%clk 0:00:02]} 58... Kf5 {[%clk 0:00:05.4]} 59. Rd8 {[%clk
0:00:01.9]} 59... Ke4 {[%clk 0:00:06]} 60. Re8+ {[%clk 0:00:02]} 60... Kd3
{[%clk 0:00:06.6]} 61. Rd8 {[%clk 0:00:02.4]} 61... Rb5 {[%clk 0:00:06.5]} 62.
Rd6 {[%clk 0:00:02.6]} 62... Kc3 {[%clk 0:00:06.5]} 63. Rc6+ {[%clk 0:00:02.4]}
63... Kd2 {[%clk 0:00:06.3]} 64. Rxg6 {[%clk 0:00:03.3]} 64... d3 {[%clk
0:00:06.8]} 65. Rg5 {[%clk 0:00:03.3]} 65... Kc3 {[%clk 0:00:06.6]} 66. Re5
{[%clk 0:00:02.5]} 66... d2 {[%clk 0:00:06.8]} 67. Re3+ {[%clk 0:00:02.8]} 67...
Kc2 {[%clk 0:00:07.1]} 68. Re2 {[%clk 0:00:03.3]} 68... Kc1 {[%clk 0:00:07.3]}
69. Rxd2 {[%clk 0:00:02.8]} 69... Kxd2 {[%clk 0:00:08.2]} 70. g4 {[%clk
0:00:03.3]} 70... hxg4+ {[%clk 0:00:08.8]} 71. Kxg4 {[%clk 0:00:03.9]} 71... d4
{[%clk 0:00:09.6]} 72. h5 {[%clk 0:00:04.5]} 72... d3 {[%clk 0:00:10.3]} 73. h6
{[%clk 0:00:04.6]} 73... Ke3 {[%clk 0:00:10.9]} 74. h7 {[%clk 0:00:04.8]} 74...
Rb8 {[%clk 0:00:11.5]} 75. Kg5 {[%clk 0:00:05]} 75... d2 {[%clk 0:00:12]} 76.
Kg6 {[%clk 0:00:05.9]} 76... d1=Q {[%clk 0:00:12.4]} 0-1

[Event "Early-Titled-Tuesday-Blitz-September-05-2023"]
[Site "Chess.com"]
[Date "2023.09.05"]
[Round "5"]
[White "amanjazu"]
[Black "subham777"]
[Result "0-1"]
[WhiteElo "2365"]
[BlackElo "2552"]
[TimeControl "180+1"]
[EndTime "8:56:18 PDT"]
[Termination "subham777 won on time"]

1. f4 {[%clk 0:02:56.7]} 1... d5 {[%clk 0:02:47.5]} 2. Nf3 {[%clk 0:02:56.7]}
2... Nf6 {[%clk 0:02:47.3]} 3. g3 {[%clk 0:02:57]} 3... e6 {[%clk 0:02:47.7]} 4.
Bg2 {[%clk 0:02:57.6]} 4... Be7 {[%clk 0:02:48.4]} 5. O-O {[%clk 0:02:58.5]}
5... O-O {[%clk 0:02:48.9]} 6. d3 {[%clk 0:02:59.4]} 6... c5 {[%clk 0:02:49.2]}
7. Qe1 {[%clk 0:02:59.5]} 7... Nc6 {[%clk 0:02:46.6]} 8. e4 {[%clk 0:02:59]}
8... dxe4 {[%clk 0:02:45.2]} 9. dxe4 {[%clk 0:02:59.9]} 9... Nd4 {[%clk
0:02:45.6]} 10. Na3 {[%clk 0:02:58.8]} 10... Bd7 {[%clk 0:02:40.1]} 11. Be3
{[%clk 0:02:57.3]} 11... Bc6 {[%clk 0:02:33.6]} 12. Rd1 {[%clk 0:02:47.4]} 12...
Nxf3+ {[%clk 0:02:23.7]} 13. Bxf3 {[%clk 0:02:48.3]} 13... Qb6 {[%clk
0:02:23.9]} 14. Nc4 {[%clk 0:02:38.9]} 14... Qa6 {[%clk 0:02:17.3]} 15. Be2
{[%clk 0:01:40.9]} 15... Bxe4 {[%clk 0:02:00.7]} 16. Nd6 {[%clk 0:01:21.1]}
16... Qxa2 {[%clk 0:01:50]} 17. Bc4 {[%clk 0:00:38.4]} 17... Qxb2 {[%clk
0:01:36]} 18. Nxe4 {[%clk 0:00:35.7]} 18... Nxe4 {[%clk 0:01:34.6]} 19. Bc1
{[%clk 0:00:35.7]} 19... Qxc2 {[%clk 0:01:04.4]} 20. Bd3 {[%clk 0:00:35.5]}
20... Qa4 {[%clk 0:00:35.5]} 21. Qxe4 {[%clk 0:00:32.5]} 21... Qxe4 {[%clk
0:00:34.8]} 22. Bxe4 {[%clk 0:00:33.4]} 22... Rab8 {[%clk 0:00:33.8]} 23. Rd7
{[%clk 0:00:33.2]} 23... Bf6 {[%clk 0:00:32.3]} 24. Be3 {[%clk 0:00:25]} 24...
b6 {[%clk 0:00:27.9]} 25. Rxa7 {[%clk 0:00:25.9]} 25... Rfd8 {[%clk 0:00:21.7]}
26. Rb1 {[%clk 0:00:25.1]} 26... g6 {[%clk 0:00:13.1]} 27. Ra6 {[%clk
0:00:19.3]} 27... Bd4 {[%clk 0:00:12.8]} 28. Kf2 {[%clk 0:00:18]} 28... b5
{[%clk 0:00:11.8]} 29. Ra5 {[%clk 0:00:15.6]} 29... b4 {[%clk 0:00:09.3]} 30.
Bxd4 {[%clk 0:00:11.8]} 30... Rxd4 {[%clk 0:00:10]} 31. Ke3 {[%clk 0:00:12.4]}
31... Rc4 {[%clk 0:00:09.5]} 32. Rb3 {[%clk 0:00:10.8]} 32... Rd8 {[%clk
0:00:08.5]} 33. Bd3 {[%clk 0:00:09.4]} 33... Rc1 {[%clk 0:00:08.4]} 34. Kd2
{[%clk 0:00:06.7]} 34... Rh1 {[%clk 0:00:06.9]} 35. Rxc5 {[%clk 0:00:07.1]}
35... Rxh2+ {[%clk 0:00:06.7]} 36. Ke3 {[%clk 0:00:07.5]} 36... Rg2 {[%clk
0:00:06.9]} 37. Kf3 {[%clk 0:00:07.9]} 37... Rd2 {[%clk 0:00:06.9]} 38. Be2
{[%clk 0:00:06]} 38... R8d4 {[%clk 0:00:05.4]} 39. Rb5 {[%clk 0:00:06.3]} 39...
Rc2 {[%clk 0:00:04.5]} 40. R5xb4 {[%clk 0:00:05.3]} 40... Rdd2 {[%clk
0:00:04.8]} 41. Re4 {[%clk 0:00:04.3]} 41... Kg7 {[%clk 0:00:04]} 42. Ree3
{[%clk 0:00:05.2]} 42... h5 {[%clk 0:00:04.3]} 43. Rbd3 {[%clk 0:00:05.7]} 43...
Ra2 {[%clk 0:00:04.5]} 44. Rxd2 {[%clk 0:00:05.9]} 44... Rxd2 {[%clk 0:00:05.4]}
45. Rd3 {[%clk 0:00:06.6]} 45... Ra2 {[%clk 0:00:06]} 46. Re3 {[%clk 0:00:06.8]}
46... Kf8 {[%clk 0:00:05.8]} 47. g4 {[%clk 0:00:07.2]} 47... hxg4+ {[%clk
0:00:05.1]} 48. Kxg4 {[%clk 0:00:08.1]} 48... Ke7 {[%clk 0:00:05.5]} 49. Bf3
{[%clk 0:00:07.5]} 49... Ra4 {[%clk 0:00:05.7]} 50. Kg5 {[%clk 0:00:06.7]} 50...
Kf8 {[%clk 0:00:05.6]} 51. Kg4 {[%clk 0:00:04.7]} 51... Kg7 {[%clk 0:00:05.5]}
52. Kg3 {[%clk 0:00:05.3]} 52... Kf6 {[%clk 0:00:05.2]} 53. Bd1 {[%clk
0:00:04.2]} 53... Ra1 {[%clk 0:00:04.8]} 54. Bf3 {[%clk 0:00:02.4]} 54... g5
{[%clk 0:00:05.2]} 55. Bg2 {[%clk 0:00:03.3]} 55... gxf4+ {[%clk 0:00:04.5]} 56.
Kxf4 {[%clk 0:00:04.2]} 56... Ra4+ {[%clk 0:00:04.4]} 57. Kg3 {[%clk 0:00:05.1]}
57... Kg5 {[%clk 0:00:04.8]} 58. Re4 {[%clk 0:00:05]} 58... Ra3+ {[%clk
0:00:04.6]} 59. Bf3 {[%clk 0:00:05.5]} 59... Kf6 {[%clk 0:00:04.2]} 60. Rf4+
{[%clk 0:00:05.7]} 60... Ke7 {[%clk 0:00:04.6]} 61. Kg4 {[%clk 0:00:05.4]} 61...
f5+ {[%clk 0:00:04.9]} 62. Kg5 {[%clk 0:00:05.5]} 62... Ra1 {[%clk 0:00:05.1]}
63. Rxf5 {[%clk 0:00:04.4]} 63... exf5 {[%clk 0:00:04.3]} 64. Kxf5 {[%clk
0:00:05.3]} 64... Rf1 {[%clk 0:00:04.1]} 65. Ke4 {[%clk 0:00:05.7]} 65... Kf6
{[%clk 0:00:04.3]} 66. Kf4 {[%clk 0:00:06.6]} 66... Ra1 {[%clk 0:00:03.8]} 67.
Ke4 {[%clk 0:00:07.5]} 67... Ra4+ {[%clk 0:00:04.4]} 68. Ke3 {[%clk 0:00:08]}
68... Ke5 {[%clk 0:00:04.9]} 69. Be2 {[%clk 0:00:08.3]} 69... Ra3+ {[%clk
0:00:05.5]} 70. Bd3 {[%clk 0:00:08.5]} 70... Rb3 {[%clk 0:00:06.1]} 71. Kd2
{[%clk 0:00:08.1]} 71... Kd4 {[%clk 0:00:06.6]} 72. Bc2 {[%clk 0:00:08]} 72...
Rb2 {[%clk 0:00:07.1]} 73. Kc1 {[%clk 0:00:07.4]} 73... Kc3 {[%clk 0:00:07.5]}
74. Bd1 {[%clk 0:00:06.3]} 74... Rg2 {[%clk 0:00:05.2]} 75. Ba4 {[%clk
0:00:05.7]} 75... Rg1+ {[%clk 0:00:05.2]} 76. Bd1 {[%clk 0:00:06]} 76... Rf1
{[%clk 0:00:05.8]} 0-1

[Event "Early-Titled-Tuesday-Blitz-September-05-2023"]
[Site "Chess.com"]
[Date "2023.09.05"]
[Round "5"]
[White "Bauman_Guy"]
[Black "HansOnTwitch"]
[Result "1/2-1/2"]
[WhiteElo "2861"]
[BlackElo "3054"]
[TimeControl "180+1"]
[EndTime "8:56:33 PDT"]
[Termination "Game drawn by repetition"]

1. e4 {[%clk 0:03:00.9]} 1... c5 {[%clk 0:02:54.3]} 2. Nf3 {[%clk 0:03:00.9]}
2... Nc6 {[%clk 0:02:49.1]} 3. d4 {[%clk 0:03:00.7]} 3... cxd4 {[%clk
0:02:49.4]} 4. Nxd4 {[%clk 0:03:01.6]} 4... Nf6 {[%clk 0:02:49.8]} 5. Nc3 {[%clk
0:03:01.9]} 5... d6 {[%clk 0:02:50.5]} 6. Bg5 {[%clk 0:03:01.9]} 6... e6 {[%clk
0:02:50.8]} 7. Bb5 {[%clk 0:03:02.2]} 7... Bd7 {[%clk 0:02:50.4]} 8. Bxc6 {[%clk
0:03:02.4]} 8... bxc6 {[%clk 0:02:50.2]} 9. Qf3 {[%clk 0:03:03.3]} 9... h6
{[%clk 0:02:43.9]} 10. Bh4 {[%clk 0:03:03.3]} 10... c5 {[%clk 0:02:04]} 11. Nb3
{[%clk 0:02:59.9]} 11... Be7 {[%clk 0:01:49.3]} 12. O-O-O {[%clk 0:02:54.9]}
12... Rb8 {[%clk 0:01:42.2]} 13. e5 {[%clk 0:02:46.5]} 13... dxe5 {[%clk
0:01:39.3]} 14. Bxf6 {[%clk 0:02:46.6]} 14... gxf6 {[%clk 0:01:28.7]} 15. Ne4
{[%clk 0:02:46.2]} 15... Rc8 {[%clk 0:00:59.4]} 16. Nd6+ {[%clk 0:02:25.1]}
16... Bxd6 {[%clk 0:00:56.3]} 17. Rxd6 {[%clk 0:02:26]} 17... c4 {[%clk
0:00:51.4]} 18. Nd2 {[%clk 0:02:22.8]} 18... Qe7 {[%clk 0:00:37.4]} 19. Ra6
{[%clk 0:02:13.8]} 19... f5 {[%clk 0:00:36.4]} 20. Qc3 {[%clk 0:02:12]} 20...
Qc5 {[%clk 0:00:35.7]} 21. Nf3 {[%clk 0:02:05.7]} 21... f6 {[%clk 0:00:31]} 22.
Rd1 {[%clk 0:02:01.5]} 22... Rh7 {[%clk 0:00:29.4]} 23. Rd2 {[%clk 0:01:44.4]}
23... Rb8 {[%clk 0:00:28.7]} 24. a3 {[%clk 0:01:39.6]} 24... Rg7 {[%clk
0:00:24.1]} 25. g3 {[%clk 0:01:37.4]} 25... Bc6 {[%clk 0:00:21.8]} 26. Nh4
{[%clk 0:01:31.2]} 26... Rgb7 {[%clk 0:00:21.6]} 27. b4 {[%clk 0:01:25.1]} 27...
Qb5 {[%clk 0:00:16.4]} 28. Ra5 {[%clk 0:01:21.5]} 28... Qxa5 {[%clk 0:00:16.5]}
29. Rd6 {[%clk 0:01:13.4]} 29... Qb5 {[%clk 0:00:14.5]} 30. f4 {[%clk
0:01:06.4]} 30... Bd7 {[%clk 0:00:13.5]} 31. Nf3 {[%clk 0:01:00.1]} 31... Rb6
{[%clk 0:00:11.3]} 32. Rd1 {[%clk 0:00:54.2]} 32... a5 {[%clk 0:00:11.8]} 33.
fxe5 {[%clk 0:00:47.8]} 33... axb4 {[%clk 0:00:11.6]} 34. Qe3 {[%clk 0:00:47.6]}
34... bxa3 {[%clk 0:00:09]} 35. Qxh6 {[%clk 0:00:44.9]} 35... Qb1+ {[%clk
0:00:04.1]} 36. Kd2 {[%clk 0:00:44.9]} 36... Qxd1+ {[%clk 0:00:03.5]} 37. Kxd1
{[%clk 0:00:45]} 37... Kd8 {[%clk 0:00:04.4]} 38. Qf8+ {[%clk 0:00:41.2]} 38...
Kc7 {[%clk 0:00:04.2]} 39. Qxa3 {[%clk 0:00:40.9]} 39... fxe5 {[%clk 0:00:03.7]}
40. Nxe5 {[%clk 0:00:40.7]} 40... Rb5 {[%clk 0:00:03.6]} 41. Nxc4 {[%clk
0:00:34.7]} 41... Rd5+ {[%clk 0:00:03.8]} 42. Ke1 {[%clk 0:00:35.1]} 42... Bc6
{[%clk 0:00:04.1]} 43. Qe7+ {[%clk 0:00:33]} 43... Bd7 {[%clk 0:00:03.3]} 44.
Qa3 {[%clk 0:00:29.8]} 44... Rb1+ {[%clk 0:00:03.2]} 45. Kf2 {[%clk 0:00:29.7]}
45... Rbb5 {[%clk 0:00:04.1]} 46. Ne3 {[%clk 0:00:26.4]} 46... Rd2+ {[%clk
0:00:03.5]} 47. Ke1 {[%clk 0:00:25.4]} 47... Rxh2 {[%clk 0:00:03.1]} 48. Qa7+
{[%clk 0:00:24.3]} 48... Kd8 {[%clk 0:00:03.2]} 49. Nd1 {[%clk 0:00:15.5]} 49...
Rb1 {[%clk 0:00:01.8]} 50. Qa5+ {[%clk 0:00:13.7]} 50... Ke8 {[%clk 0:00:02]}
51. Qa8+ {[%clk 0:00:12.5]} 51... Kf7 {[%clk 0:00:02.5]} 52. Qf3 {[%clk
0:00:12]} 52... Rh6 {[%clk 0:00:01.7]} 53. Qd3 {[%clk 0:00:08.6]} 53... Be8
{[%clk 0:00:01.9]} 54. Kf2 {[%clk 0:00:08.6]} 54... Rh2+ {[%clk 0:00:02.3]} 55.
Kg1 {[%clk 0:00:08.8]} 55... Rh6 {[%clk 0:00:02.2]} 56. Kf2 {[%clk 0:00:09.2]}
56... Rg6 {[%clk 0:00:02.6]} 57. Ne3 {[%clk 0:00:09.1]} 57... Rb7 {[%clk
0:00:03.5]} 58. Nc4 {[%clk 0:00:09.1]} 58... Kg7 {[%clk 0:00:03.6]} 59. Ne5
{[%clk 0:00:09.5]} 59... Rf6 {[%clk 0:00:03.5]} 60. Qd8 {[%clk 0:00:09.7]} 60...
Bg6 {[%clk 0:00:02.7]} 61. c4 {[%clk 0:00:08.4]} 61... f4 {[%clk 0:00:02.8]} 62.
g4 {[%clk 0:00:08.2]} 62... f3 {[%clk 0:00:02.7]} 63. Qd4 {[%clk 0:00:07.8]}
63... Kg8 {[%clk 0:00:01.4]} 64. g5 {[%clk 0:00:07.8]} 64... Rf5 {[%clk
0:00:01.4]} 65. Ng4 {[%clk 0:00:08.2]} 65... Kf8 {[%clk 0:00:01.3]} 66. Nh6
{[%clk 0:00:07.6]} 66... Bf7 {[%clk 0:00:02.1]} 67. Nxf5 {[%clk 0:00:07.5]}
67... exf5 {[%clk 0:00:03]} 68. Kxf3 {[%clk 0:00:08]} 68... Re7 {[%clk
0:00:03.5]} 69. c5 {[%clk 0:00:06.8]} 69... Re4 {[%clk 0:00:03.6]} 70. Qd6+
{[%clk 0:00:07.3]} 70... Kg8 {[%clk 0:00:03.7]} 71. g6 {[%clk 0:00:07.4]} 71...
Be6 {[%clk 0:00:03.5]} 72. c6 {[%clk 0:00:07.6]} 72... Kg7 {[%clk 0:00:03.2]}
73. c7 {[%clk 0:00:07.2]} 73... Bc8 {[%clk 0:00:03.9]} 74. Qd8 {[%clk
0:00:06.6]} 74... Bb7 {[%clk 0:00:04.5]} 75. Kg3 {[%clk 0:00:07.1]} 75... Rg4+
{[%clk 0:00:04.4]} 76. Kh3 {[%clk 0:00:06.9]} 76... Rxg6 {[%clk 0:00:03.1]} 77.
c8=Q {[%clk 0:00:06.5]} 77... Bxc8 {[%clk 0:00:03.2]} 78. Qxc8 {[%clk
0:00:07.4]} 78... Kf6 {[%clk 0:00:03.3]} 79. Qc6+ {[%clk 0:00:07]} 79... Kg5
{[%clk 0:00:03.2]} 80. Qc1+ {[%clk 0:00:07.2]} 80... Kf6 {[%clk 0:00:03.7]} 81.
Kh4 {[%clk 0:00:07.5]} 81... Rg4+ {[%clk 0:00:03.8]} 82. Kh5 {[%clk 0:00:08]}
82... Ke5 {[%clk 0:00:04.5]} 83. Qe3+ {[%clk 0:00:08.2]} 83... Kf6 {[%clk
0:00:04.7]} 84. Qc5 {[%clk 0:00:07.5]} 84... Ke6 {[%clk 0:00:04.9]} 85. Qe3+
{[%clk 0:00:06.3]} 85... Kf6 {[%clk 0:00:05.4]} 86. Qc3+ {[%clk 0:00:06.7]}
86... Ke6 {[%clk 0:00:05.9]} 87. Qe3+ {[%clk 0:00:07]} 87... Kf6 {[%clk
0:00:06.5]} 1/2-1/2